fUSD/lending_fUSD_20250504
["ID","MTS","AMOUNT","RATE_DAILY","PERIOD"]
[359791265,1746351032898,-471.77882368,0.00019726,2]
[359791266,1746351032907,-475.57216229,0.00019726,2]
[359791267,1746351032916,-427.76023717,0.00019726,2]
[359791268,1746351032925,-523.38996589,0.00019726,2]
[359791269,1746351032935,-455.25161023,0.00019726,2]
[359791270,1746351032944,-507.97007465,0.00019726,2]
[359791271,1746351032953,-450.0,0.00019726,2]
[359791272,1746351032962,-469.33897636,0.00019726,2]
[359791273,1746351032971,-457.33548917,0.00019726,2]
[359791274,1746351032980,-539.01883024,0.00019726,2]
[359791275,1746351032990,-533.14689196,0.00019726,2]
[359791276,1746351032999,-534.40078584,0.00019726,2]
[359791277,1746351033009,-455.73048171,0.00019726,2]
[359791278,1746351033018,-450.0,0.00019726,2]
[359791279,1746351033027,-462.37127149,0.00019726,2]
[359791280,1746351033037,-453.96813025,0.00019726,2]
[359791281,1746351033047,-457.99263557,0.00019726,2]
[359791282,1746351033056,-450.0,0.00019726,2]
[359791283,1746351033066,-504.1173944,0.00019726,2]
[359791284,1746351033076,-469.26578051,0.00019726,2]
[359791285,1746351033087,-544.71984024,0.00019726,2]
[359791286,1746351033097,-476.55479096,0.00019726,2]
[359791287,1746351033106,-450.0,0.00019726,2]
[359791288,1746351033115,-466.80880273,0.00019726,2]
[359791289,1746351033132,-457.64435918,0.00019726,2]
[359791290,1746351033142,-450.0,0.00019726,2]
[359791291,1746351033152,-473.0061059,0.00019726,2]
[359791292,1746351033163,-450.0,0.00019726,2]
[359791293,1746351033173,-450.0,0.00019726,2]
[359791294,1746351033182,-450.0,0.00019726,2]
[359791295,1746351033191,-460.71068438,0.00019726,2]
[359791296,1746351033200,-516.92207942,0.00019726,2]
[359791297,1746351033209,-532.69789439,0.00019726,2]
[359791298,1746351033219,-466.84125525,0.00019726,2]
[359791299,1746351033228,-454.36226257,0.00019726,2]
[359791300,1746351033238,-450.0,0.00019726,2]
[359791301,1746351033248,-450.0,0.00019726,2]
[359791302,1746351033258,-450.0,0.00019726,2]
[359791303,1746351033268,-450.0,0.00019726,2]
[359791304,1746351033278,-450.0,0.00019726,2]
[359791305,1746351033287,-453.33819576,0.00019726,2]
[359791306,1746351033297,-450.0,0.00019726,2]
[359791307,1746351033306,-471.18371667,0.00019726,2]
[359791308,1746351033316,-450.0,0.00019726,2]
[359791309,1746351033325,-473.78138403,0.00019726,2]
[359791310,1746351033334,-473.69764372,0.00019726,2]
[359791311,1746351033343,-466.00947125,0.00019726,2]
[359791312,1746351033353,-450.0,0.00019726,2]
[359791313,1746351033362,-477.12281901,0.00019726,2]
[359791314,1746351033371,-450.0,0.00019726,2]
[359791315,1746351033381,-450.0,0.00019726,2]
[359791316,1746351033390,-450.0,0.00019726,2]
[359791317,1746351033399,-450.0,0.00019726,2]
[359791318,1746351033408,-474.12,0.00019726,2]
[359791319,1746351033418,-454.83167553,0.00019726,2]
[359791320,1746351033427,-450.0,0.00019726,2]
[359791321,1746351033436,-460.36124652,0.00019726,2]
[359791322,1746351033445,-457.88572593,0.00019726,2]
[359791323,1746351033454,-450.0,0.00019726,2]
[359791324,1746351033463,-450.0,0.00019726,2]
[359791325,1746351033473,-450.0,0.00019726,2]
[359791326,1746351033482,-577.78230863,0.00019726,2]
[359791327,1746351033492,-450.0,0.00019726,2]
[359791328,1746351033502,-679.35,0.00019726,2]
[359791329,1746351033511,-450.0,0.00019726,2]
[359791330,1746351033520,-472.82267193,0.00019726,2]
[359791331,1746351033529,-450.0,0.00019726,2]
[359791332,1746351033538,-450.0,0.00019726,2]
[359791333,1746351033548,-450.0,0.00019726,2]
[359791334,1746351033557,-450.0,0.00019726,2]
[359791335,1746351033566,-450.0,0.00019726,2]
[359791336,1746351033576,-457.33987013,0.00019726,2]
[359791337,1746351033586,-450.0,0.00019726,2]
[359791338,1746351033595,-450.0,0.00019726,2]
[359791339,1746351033604,-450.0,0.00019726,2]
[359791340,1746351033613,-450.0,0.00019726,2]
[359791341,1746351033622,-450.0,0.00019726,2]
[359791342,1746351033631,-466.90196776,0.00019726,2]
[359791343,1746351033641,-564.53733444,0.00019726,2]
[359791344,1746351033650,-469.99085654,0.00019726,2]
[359791345,1746351033659,-455.17270899,0.00019726,2]
[359791346,1746351033668,-466.61953777,0.00019726,2]
[359791347,1746351033678,-450.0,0.00019726,2]
[359791348,1746351033687,-525.1439198,0.00019726,2]
[359791349,1746351033695,-500.0,0.00019726,2]
[359791350,1746351033705,-450.0,0.00019726,2]
[359791351,1746351033714,-453.10001935,0.00019726,2]
[359791352,1746351033724,-550.02328546,0.00019726,2]
[359791353,1746351033733,-450.0,0.00019726,2]
[359791354,1746351033742,-482.71745244,0.00019726,2]
[359791355,1746351033751,-466.94018735,0.00019726,2]
[359791356,1746351033759,-450.0,0.00019726,2]
[359791357,1746351033768,-450.0,0.00019726,2]
[359791358,1746351033777,-457.67568807,0.00019726,2]
[359791359,1746351033786,-666.05,0.00019726,2]
[359791360,1746351033795,-551.57572639,0.00019726,2]
[359791361,1746351033804,-518.63,0.00019726,2]
[359791362,1746351033813,-555.00008616,0.00019726,2]
[359791363,1746351033822,-461.82335928,0.00019726,2]
[359791364,1746351033831,-523.57191537,0.00019726,2]
[359791365,1746351033840,-450.0,0.00019726,2]
[359791366,1746351033849,-450.0,0.00019726,2]
[359791367,1746351033858,-530.0,0.00019726,2]
[359791368,1746351033867,-538.79781738,0.00019726,2]
[359791369,1746351033877,-450.0,0.00019726,2]
[359791370,1746351033886,-453.06189851,0.00019726,2]
[359791371,1746351033895,-381.14370925,0.00019726,2]
[359791372,1746351033915,-80.06828678,0.00019726,2]
[359791373,1746351033924,-619.93171322,0.00019726,2]
[359791374,1746351033951,-70.42828678,0.00019726,2]
[359791375,1746351033960,-450.0,0.00019726,2]
[359791376,1746351033969,-57.40660873,0.00019726,2]
[359791377,1746351033980,-392.59339127,0.00019726,2]
[359791378,1746351033989,-450.0,0.00019726,2]
[359791379,1746351033998,-450.0,0.00019726,2]
[359791380,1746351034007,-450.0,0.00019726,2]
[359791381,1746351034017,-450.0,0.00019726,2]
[359791382,1746351034026,-462.52155666,0.00019726,2]
[359791383,1746351034036,-450.0,0.00019726,2]
[359791384,1746351034045,-450.0,0.00019726,2]
[359791385,1746351034053,-530.0,0.00019726,2]
[359791386,1746351034063,-450.0,0.00019726,2]
[359791387,1746351034072,-450.0,0.00019726,2]
[359791388,1746351034081,-450.0,0.00019726,2]
[359791389,1746351034090,-436.25982707,0.00019726,2]
[359791390,1746351034107,-13.74017293,0.00019726,2]
[359791391,1746351034117,-450.0,0.00019726,2]
[359791392,1746351034126,-333.23992258,0.00019726,2]
[359791393,1746351034141,-213.92583067,0.00019726,2]
[359791394,1746351034150,-292.23786637,0.00019726,2]
[359791395,1746351034170,-163.2830523,0.00019726,2]
[359791396,1746351034179,-450.0,0.00019726,2]
[359791397,1746351034189,-568.40612862,0.00019726,2]
[359791398,1746351034198,-860.61,0.00019726,2]
[359791399,1746351034207,-450.0,0.00019726,2]
[359791400,1746351034217,-450.0,0.00019726,2]
[359791401,1746351034226,-450.0,0.00019726,2]
[359791402,1746351034235,-450.0,0.00019726,2]
[359791403,1746351034244,-475.09,0.00019726,2]
[359791404,1746351034253,-450.0,0.00019726,2]
[359791405,1746351034262,-450.0,0.00019726,2]
[359791406,1746351034271,-463.62436241,0.00019726,2]
[359791407,1746351034280,-469.21305301,0.00019726,2]
[359791408,1746351034289,-462.22926261,0.00019726,2]
[359791409,1746351034298,-450.0,0.00019726,2]
[359791410,1746351034308,-458.24148978,0.00019726,2]
[359791411,1746351034317,-450.0,0.00019726,2]
[359791412,1746351034326,-450.0,0.00019726,2]
[359791413,1746351034335,-450.0,0.00019726,2]
[359791414,1746351034344,-493.02,0.00019726,2]
[359791415,1746351034353,-506.02774208,0.00019726,2]
[359791416,1746351034363,-462.20501486,0.00019726,2]
[359791417,1746351034372,-463.27549648,0.00019726,2]
[359791418,1746351034382,-450.0,0.00019726,2]
[359791419,1746351034391,-537.35923451,0.00019726,2]
[359791420,1746351034400,-454.81800747,0.00019726,2]
[359791421,1746351034409,-460.32483243,0.00019726,2]
[359791422,1746351034419,-472.42230078,0.00019726,2]
[359791423,1746351034428,-450.0,0.00019726,2]
[359791424,1746351034437,-450.0,0.00019726,2]
[359791425,1746351034446,-473.33844431,0.00019726,2]
[359791426,1746351034455,-450.0,0.00019726,2]
[359791427,1746351034465,-450.0,0.00019726,2]
[359791428,1746351034474,-450.0,0.00019726,2]
[359791429,1746351034483,-450.0,0.00019726,2]
[359791430,1746351034492,-472.16891712,0.00019726,2]
[359791431,1746351034501,-450.0,0.00019726,2]
[359791432,1746351034511,-469.92190891,0.00019726,2]
[359791433,1746351034519,-465.76055153,0.00019726,2]
[359791434,1746351034529,-466.99211731,0.00019726,2]
[359791435,1746351034538,-450.0,0.00019726,2]
[359791436,1746351034547,-450.0,0.00019726,2]
[359791437,1746351034556,-479.53274141,0.00019726,2]
[359791438,1746351034565,-453.15062506,0.00019726,2]
[359791439,1746351034574,-453.849139,0.00019726,2]
[359791440,1746351034583,-450.0,0.00019726,2]
[359791441,1746351034592,-530.0097799,0.00019726,2]
[359791442,1746351034601,-450.0,0.00019726,2]
[359791443,1746351034610,-450.0,0.00019726,2]
[359791444,1746351034619,-458.19467588,0.00019726,2]
[359791445,1746351034630,-271.19773458,0.00019726,2]
[359791453,1746351037785,-281.66,0.00019726,2]
[359791454,1746351037797,-23.49129542,0.00019726,2]
[359791455,1746351037806,-342.26324606,0.00019726,2]
[359791456,1746351037840,-107.73675394,0.00019726,2]
[359791457,1746351037850,-231.56297898,0.00019726,2]
[359791458,1746351037899,-433.13563861,0.00019726,2]
[359791459,1746351037911,-589.97551441,0.00019726,2]
[359791460,1746351037924,-365.885868,0.00019726,2]
[359791461,1746351037935,-461.38929947,0.00019726,2]
[359791462,1746351037945,-465.00355189,0.00019726,2]
[359791463,1746351037955,-456.63331738,0.00019726,2]
[359791464,1746351037965,-450.0,0.00019726,2]
[359791465,1746351037975,-582.1312654,0.00019726,2]
[359791466,1746351037985,-514.04138181,0.00019726,2]
[359791467,1746351037995,-695.86,0.00019726,2]
[359791468,1746351038004,-453.79042884,0.00019726,2]
[359791469,1746351038015,-450.0,0.00019726,2]
[359791471,1746351038025,-450.0,0.00019726,2]
[359791474,1746351038034,-453.4022161,0.00019726,2]
[359791475,1746351038044,-450.0,0.00019726,2]
[359791478,1746351038054,-462.41357313,0.00019726,2]
[359791480,1746351038064,-450.0,0.00019726,2]
[359791482,1746351038074,-465.6151582,0.00019726,2]
[359791484,1746351038084,-450.0,0.00019726,2]
[359791486,1746351038094,-156.3411145,0.00019726,2]
[359791488,1746351038106,-311.31513355,0.00019726,2]
[359791490,1746351038116,-59.03105758,0.00019726,2]
[359791495,1746351038159,-406.18253048,0.00019726,2]
[359791497,1746351038168,-169.90384429,0.00019726,2]
[359791499,1746351038178,-450.0,0.00019726,2]
[359791502,1746351038187,-461.15695493,0.00019726,2]
[359791504,1746351038196,-1270.80880043,0.00019726,2]
[359791535,1746351039894,-74.64119957,0.00019726,2]
[359791536,1746351039904,-68.4813996,0.00019726,2]
[359791537,1746351039943,-381.5186004,0.00019726,2]
[359791538,1746351039953,-450.0,0.00019726,2]
[359791539,1746351039963,-456.73476036,0.00019726,2]
[359791540,1746351039972,-450.0,0.00019726,2]
[359791541,1746351039982,-223.77330795,0.00019726,2]
[359791542,1746351039993,-243.69925734,0.00019726,2]
[359791543,1746351040003,-478.00162711,0.00019726,2]
[359791544,1746351040012,-460.46872685,0.00019726,2]
[359791545,1746351040021,-450.0,0.00019726,2]
[359791546,1746351040031,-557.70519425,0.00019726,2]
[359791547,1746351040040,-476.32519445,0.00019726,2]
[359791548,1746351040052,-0.21684851,0.00019726,2]
[359791549,1746351040062,-450.0,0.00019726,2]
[359791550,1746351040071,-524.14694293,0.00019726,2]
[359791551,1746351040081,-450.0,0.00019726,2]
[359791552,1746351040091,-469.51174114,0.00019726,2]
[359791553,1746351040100,-473.19636844,0.00019726,2]
[359791554,1746351040110,-450.0,0.00019726,2]
[359791555,1746351040119,-450.0,0.00019726,2]
[359791556,1746351040129,-450.0,0.00019726,2]
[359791557,1746351040141,-450.0,0.00019726,2]
[359791558,1746351040150,-450.0,0.00019726,2]
[359791559,1746351040159,-450.0,0.00019726,2]
[359791560,1746351040169,-520.28092424,0.00019726,2]
[359791561,1746351040178,-457.51,0.00019726,2]
[359791562,1746351040188,-450.0,0.00019726,2]
[359791563,1746351040197,-450.0,0.00019726,2]
[359791564,1746351040207,-538.92,0.00019726,2]
[359791565,1746351040216,-450.0,0.00019726,2]
[359791566,1746351040225,-537.92,0.00019726,2]
[359791567,1746351040235,-450.0,0.00019726,2]
[359791568,1746351040244,-543.99,0.00019726,2]
[359791569,1746351040254,-469.68426347,0.00019726,2]
[359791570,1746351040263,-179.5271861,0.00019726,2]
[359791571,1746351040272,-504.00115438,0.00019726,2]
[359791572,1746351040282,-459.46449075,0.00019726,2]
[359791573,1746351040291,-472.19919412,0.00019726,2]
[359791574,1746351040301,-450.0,0.00019726,2]
[359791575,1746351040310,-450.0,0.00019726,2]
[359791576,1746351040319,-376.23674134,0.00019726,2]
[359791577,1746351040329,-450.0,0.00019726,2]
[359791578,1746351040338,-460.68761893,0.00019726,2]
[359791579,1746351040348,-450.0,0.00019726,2]
[359791580,1746351040357,-475.622608,0.00019726,2]
[359791581,1746351040366,-450.0,0.00019726,2]
[359791582,1746351040375,-450.0,0.00019726,2]
[359791583,1746351040384,-450.0,0.00019726,2]
[359791584,1746351040394,-450.0,0.00019726,2]
[359791585,1746351040403,-550.34242963,0.00019726,2]
[359791586,1746351040413,-479.1396632,0.00019726,2]
[359791587,1746351040422,-484.92143431,0.00019726,2]
[359791588,1746351040430,-450.0,0.00019726,2]
[359791589,1746351040439,-450.0,0.00019726,2]
[359791590,1746351040449,-450.0,0.00019726,2]
[359791591,1746351040459,-450.0,0.00019726,2]
[359791592,1746351040468,-450.0,0.00019726,2]
[359791593,1746351040478,-450.0,0.00019726,2]
[359791594,1746351040487,-511.43377596,0.00019726,2]
[359791595,1746351040497,-450.0,0.00019726,2]
[359791596,1746351040506,-450.0,0.00019726,2]
[359791597,1746351040515,-471.97920847,0.00019726,2]
[359791599,1746351040525,-518.9818778,0.00019726,2]
[359791602,1746351040534,-481.61914666,0.00019726,2]
[359791603,1746351040544,-450.0,0.00019726,2]
[359791604,1746351040553,-450.0,0.00019726,2]
[359791605,1746351040563,-476.96512932,0.00019726,2]
[359791606,1746351040571,-450.0,0.00019726,2]
[359791607,1746351040581,-450.0,0.00019726,2]
[359791608,1746351040590,-483.07425817,0.00019726,2]
[359791609,1746351040599,-487.00634599,0.00019726,2]
[359791610,1746351040609,-462.11474998,0.00019726,2]
[359791611,1746351040618,-450.0,0.00019726,2]
[359791612,1746351040628,-489.86268034,0.00019726,2]
[359791613,1746351040637,-906.47,0.00019726,2]
[359791614,1746351040647,-450.0,0.00019726,2]
[359791615,1746351040656,-4.13275535,0.00019726,2]
[359791619,1746351040685,-741.50724465,0.00019726,2]
[359791621,1746351040695,-450.0,0.00019726,2]
[359791623,1746351040704,-450.0,0.00019726,2]
[359791625,1746351040713,-450.0,0.00019726,2]
[359791626,1746351040722,-610.75,0.00019726,2]
[359791628,1746351040732,-833.47,0.00019726,2]
[359791630,1746351040741,-466.24,0.00019726,2]
[359791632,1746351040750,-468.49983359,0.00019726,2]
[359791634,1746351040759,-564.76363279,0.00019726,2]
[359791637,1746351040769,-450.0,0.00019726,2]
[359791639,1746351040778,-492.84016615,0.00019726,2]
[359791641,1746351040788,-450.0,0.00019726,2]
[359791643,1746351040797,-450.0,0.00019726,2]
[359791645,1746351040807,-450.0,0.00019726,2]
[359791647,1746351040816,-476.7468002,0.00019726,2]
[359791648,1746351040825,-641.66,0.00019726,2]
[359791650,1746351040834,-468.60183099,0.00019726,2]
[359791653,1746351040843,-463.89065437,0.00019726,2]
[359791655,1746351040853,-450.0,0.00019726,2]
[359791656,1746351040862,-482.19,0.00019726,2]
[359791659,1746351040871,-450.0,0.00019726,2]
[359791660,1746351040880,-3230.66,0.00019726,2]
[359791662,1746351040889,-450.0,0.00019726,2]
[359791664,1746351040899,-502.70725784,0.00019726,2]
[359791667,1746351040908,-450.0,0.00019726,2]
[359791669,1746351040918,-450.0,0.00019726,2]
[359791671,1746351040927,-450.0,0.00019726,2]
[359791673,1746351040936,-831.16,0.00019726,2]
[359791675,1746351040945,-450.0,0.00019726,2]
[359791677,1746351040955,-1026.43,0.00019726,2]
[359791679,1746351040964,-237.94,0.00019726,2]
[359791681,1746351040973,-450.0,0.00019726,2]
[359791683,1746351040982,-498.63289718,0.00019726,2]
[359791685,1746351040991,-450.0,0.00019726,2]
[359791686,1746351041001,-3403.41,0.00019726,2]
[359791689,1746351041010,-450.0,0.00019726,2]
[359791690,1746351041019,-450.0,0.00019726,2]
[359791693,1746351041029,-706.47,0.00019726,2]
[359791695,1746351041039,-450.0,0.00019726,2]
[359791697,1746351041049,-465.80097694,0.00019726,2]
[359791699,1746351041058,-450.0,0.00019726,2]
[359791701,1746351041067,-564.07346602,0.00019726,2]
[359791703,1746351041076,-321.28692681,0.00019726,2]
[359791705,1746351041085,-450.0,0.00019726,2]
[359791707,1746351041094,-554.13165685,0.00019726,2]
[359791709,1746351041103,-469.9218943,0.00019726,2]
[359791711,1746351041113,-450.0,0.00019726,2]
[359791713,1746351041122,-450.0,0.00019726,2]
[359791715,1746351041131,-450.0,0.00019726,2]
[359791717,1746351041140,-177.48,0.00019726,2]
[359791719,1746351041149,-450.0,0.00019726,2]
[359791721,1746351041158,-510.15028093,0.00019726,2]
[359791723,1746351041167,-590.94852391,0.00019726,2]
[359791725,1746351041176,-450.0,0.00019726,2]
[359791727,1746351041185,-2803.29,0.00019726,2]
[359791729,1746351041194,-450.0,0.00019726,2]
[359791731,1746351041203,-841.99,0.00019726,2]
[359791733,1746351041212,-450.0,0.00019726,2]
[359791735,1746351041221,-55115.85,0.00019726,2]
[359791737,1746351041230,-464.60153019,0.00019726,2]
[359791738,1746351041239,-450.0,0.00019726,2]
[359791740,1746351041249,-450.0,0.00019726,2]
[359791743,1746351041258,-484.94147185,0.00019726,2]
[359791745,1746351041269,-450.0,0.00019726,2]
[359791747,1746351041278,-450.0,0.00019726,2]
[359791749,1746351041287,-450.0,0.00019726,2]
[359791751,1746351041296,-474.89880793,0.00019726,2]
[359791753,1746351041305,-471.32926524,0.00019726,2]
[359791754,1746351041314,-450.0,0.00019726,2]
[359791756,1746351041323,-798.6,0.00019726,2]
[359791758,1746351041332,-450.0,0.00019726,2]
[359791760,1746351041341,-450.0,0.00019726,2]
[359791762,1746351041350,-450.0,0.00019726,2]
[359791764,1746351041360,-450.0,0.00019726,2]
[359791766,1746351041369,-450.0,0.00019726,2]
[359791768,1746351041378,-1141.6,0.00019726,2]
[359791771,1746351041387,-450.0,0.00019726,2]
[359791773,1746351041396,-1935.27711645,0.00019726,2]
[359791775,1746351041405,-450.0,0.00019726,2]
[359791776,1746351041415,-450.0,0.00019726,2]
[359791778,1746351041425,-2775.03,0.00019726,2]
[359791780,1746351041434,-471.3090587,0.00019726,2]
[359791783,1746351041443,-450.0,0.00019726,2]
[359791785,1746351041453,-450.0,0.00019726,2]
[359791787,1746351041462,-178.30706883,0.00019726,2]
[359791789,1746351041471,-503.78313955,0.00019726,2]
[359791791,1746351041480,-13107.39,0.00019726,2]
[359791793,1746351041489,-563.01,0.00019726,2]
[359791795,1746351041498,-450.0,0.00019726,2]
[359791796,1746351041507,-722.64,0.00019726,2]
[359791798,1746351041516,-159.07067915,0.00019726,2]
[359791800,1746351041526,-450.0,0.00019726,2]
[359791802,1746351041535,-511.46508866,0.00019726,2]
[359791804,1746351041545,-450.0,0.00019726,2]
[359791806,1746351041554,-450.0,0.00019726,2]
[359791808,1746351041563,-450.0,0.00019726,2]
[359791810,1746351041572,-463.87297831,0.00019726,2]
[359791811,1746351041581,-450.0,0.00019726,2]
[359791812,1746351041590,-450.0,0.00019726,2]
[359791813,1746351041599,-881.79,0.00019726,2]
[359791814,1746351041608,-481.3400847,0.00019726,2]
[359791815,1746351041617,-1402.98,0.00019726,2]
[359791816,1746351041625,-450.0,0.00019726,2]
[359791817,1746351041634,-450.0,0.00019726,2]
[359791818,1746351041643,-528.63,0.00019726,2]
[359791819,1746351041652,-450.0,0.00019726,2]
[359791820,1746351041661,-1082.24,0.00019726,2]
[359791821,1746351041669,-450.0,0.00019726,2]
[359791823,1746351041679,-7221.87,0.00019726,2]
[359791825,1746351041688,-709.41,0.00019726,2]
[359791827,1746351041696,-450.0,0.00019726,2]
[359791829,1746351041706,-4203.96,0.00019726,2]
[359791831,1746351041714,-450.0,0.00019726,2]
[359791833,1746351041724,-450.0,0.00019726,2]
[359791835,1746351041733,-450.0,0.00019726,2]
[359791837,1746351041742,-450.0,0.00019726,2]
[359791839,1746351041751,-450.0,0.00019726,2]
[359791841,1746351041760,-450.0,0.00019726,2]
[359791843,1746351041769,-462.5968718,0.00019726,2]
[359791845,1746351041779,-474.6439651,0.00019726,2]
[359791847,1746351041788,-696.93,0.00019726,2]
[359791849,1746351041797,-466.06311784,0.00019726,2]
[359791851,1746351041806,-450.0,0.00019726,2]
[359791853,1746351041815,-450.0,0.00019726,2]
[359791855,1746351041824,-450.0,0.00019726,2]
[359791857,1746351041834,-450.0,0.00019726,2]
[359791859,1746351041844,-450.0,0.00019726,2]
[359791861,1746351041854,-450.0,0.00019726,2]
[359791863,1746351041863,-468.21882189,0.00019726,2]
[359791865,1746351041872,-831.17,0.00019726,2]
[359791867,1746351041881,-73600.72,0.00019726,2]
[359791869,1746351041890,-450.0,0.00019726,2]
[359791871,1746351041900,-469.92289196,0.00019726,2]
[359791873,1746351041910,-450.0,0.00019726,2]
[359791875,1746351041919,-865.37,0.00019726,2]
[359791877,1746351041928,-450.0,0.00019726,2]
[359791879,1746351041937,-450.65608988,0.00019726,2]
[359791881,1746351041947,-450.0,0.00019726,2]
[359791883,1746351041956,-450.0,0.00019726,2]
[359791885,1746351041965,-450.0,0.00019726,2]
[359791886,1746351041975,-450.0,0.00019726,2]
[359791888,1746351041984,-450.0,0.00019726,2]
[359791890,1746351041994,-528.6678994,0.00019726,2]
[359791892,1746351042003,-804.23,0.00019726,2]
[359791894,1746351042013,-450.0,0.00019726,2]
[359791896,1746351042023,-499.7,0.00019726,2]
[359791898,1746351042032,-450.0,0.00019726,2]
[359791900,1746351042042,-450.0,0.00019726,2]
[359791902,1746351042051,-450.0,0.00019726,2]
[359791904,1746351042061,-450.0,0.00019726,2]
[359791906,1746351042070,-1204.66,0.00019726,2]
[359791908,1746351042080,-450.0,0.00019726,2]
[359791910,1746351042089,-3216.35,0.00019726,2]
[359791912,1746351042099,-493.14,0.00019726,2]
[359791914,1746351042108,-450.0,0.00019726,2]
[359791916,1746351042118,-516.12,0.00019726,2]
[359791918,1746351042128,-691.8,0.00019726,2]
[359791920,1746351042141,-539.48,0.00019726,2]
[359791922,1746351042150,-450.0,0.00019726,2]
[359791924,1746351042160,-450.0,0.00019726,2]
[359791926,1746351042169,-450.0,0.00019726,2]
[359791928,1746351042179,-465.56634054,0.00019726,2]
[359791930,1746351042189,-200.46,0.00019726,2]
[359791932,1746351042199,-494.11,0.00019726,2]
[359791934,1746351042208,-450.0,0.00019726,2]
[359791937,1746351042219,-161.39009158,0.00019726,2]
[359791939,1746351042229,-450.0,0.00019726,2]
[359791940,1746351042238,-450.0,0.00019726,2]
[359791943,1746351042247,-450.0,0.00019726,2]
[359791945,1746351042256,-565.36,0.00019726,2]
[359791946,1746351042265,-2472.25,0.00019726,2]
[359791948,1746351042275,-463.22403769,0.00019726,2]
[359791950,1746351042285,-3327.9,0.00019726,2]
[359791952,1746351042294,-559.97,0.00019726,2]
[359791954,1746351042303,-473.83253751,0.00019726,2]
[359791956,1746351042312,-450.0,0.00019726,2]
[359791958,1746351042321,-450.0,0.00019726,2]
[359791960,1746351042330,-450.0,0.00019726,2]
[359791962,1746351042339,-450.0,0.00019726,2]
[359791964,1746351042348,-1396.5,0.00019726,2]
[359791966,1746351042357,-450.0,0.00019726,2]
[359791968,1746351042366,-554.7,0.00019726,2]
[359791970,1746351042375,-450.0,0.00019726,2]
[359791971,1746351042384,-1108.1,0.00019726,2]
[359791972,1746351042393,-1188.84,0.00019726,2]
[359791973,1746351042402,-450.0,0.00019726,2]
[359791974,1746351042410,-450.0,0.00019726,2]
[359791975,1746351042419,-427.59,0.00019726,2]
[359791976,1746351042428,-450.0,0.00019726,2]
[359791978,1746351042437,-450.0,0.00019726,2]
[359791980,1746351042446,-511.16135072,0.00019726,2]
[359791982,1746351042455,-450.0,0.00019726,2]
[359791983,1746351042464,-450.0,0.00019726,2]
[359791986,1746351042473,-450.0,0.00019726,2]
[359791989,1746351042482,-457.39953609,0.00019726,2]
[359791991,1746351042491,-534.82042114,0.00019726,2]
[359791993,1746351042500,-450.0,0.00019726,2]
[359791995,1746351042509,-651.04,0.00019726,2]
[359792007,1746351042711,-450.0,0.00019726,2]
[359792009,1746351042721,-1000.0,0.00019745,2]
[359792010,1746351042730,-1000.0,0.00019746,2]
[359792011,1746351042739,-440.73044005,0.00019748,2]
[359792012,1746351042748,-308.93535096,0.00019748,2]
[359792013,1746351042758,-5547.10458995,0.0001975,2]
[359792014,1746351042767,-178.91547838,0.00019753,2]
[359792015,1746351042777,-450.0,0.00019753,2]
[359792016,1746351042786,-513.42425691,0.00019753,2]
[359792017,1746351042797,-487.66574456,0.00019753,2]
[359792018,1746351042806,-154.59535466,0.00019753,2]